Cogmind - Beta 9.6 *** ADVENTURER MODE // 2020.08.11 @ 15:47:55 Player: Sn@43 Result: Self-destructed Performance ------------- Evolutions (1) 500 Regions Visited (3) 600 Robots Destroyed (51) 255 Value Destroyed (1092) 1092 Prototype IDs (0) 0 Alien Tech Used (0) 0 Bonus (0) 0 TOTAL SCORE: 2447 Bonus ------- None Cogmind --------- Core Integrity 328/400 Matter 247/300 Energy 150/150 System Corruption 0% Temperature Cool (36) Movement Rolling (100) Ox2 Location -9/Materials Parts ------- > --- POWER (1) -------- Light Angular Momentum Engine > --- PROPULSION (2) --- Wheel Wheel > --- UTILITY (4) ------ Large Storage Unit Large Storage Unit Advanced Visual Processing Unit Hardened Light Armor Plating > --- WEAPON (2) ------- Heavy Assault Rifle Rocket Launcher > --- INVENTORY (16) --- Deuterium Engine Wheel Armored Wheel Medium Storage Unit Large Storage Unit Targeting Computer Armor Integrity Analyzer Hardened Light Armor Plating Reflective Plating Shock Rifle Heavy Assault Rifle Heavy Assault Rifle Peak State ------------ > --- POWER ------------ Light Angular Momentum Engine > --- PROPULSION ------- Wheel Wheel > --- UTILITY ---------- Large Storage Unit Large Storage Unit Advanced Visual Processing Unit Hardened Light Armor Plating > --- WEAPON ----------- Heavy Assault Rifle Heavy Assault Rifle > --- INVENTORY -------- Improved Ion Engine Deuterium Engine Wheel Wheel Wheel Medium Storage Unit Large Storage Unit Targeting Computer Armor Integrity Analyzer Hardened Light Armor Plating Reflective Plating Shock Rifle Heavy Assault Rifle Heavy Assault Rifle Rocket Launcher [Rating: 20] Favorites ----------- Power Improved Ion Engine Engine Improved Ion Engine Propulsion Wheel Wheel Wheel Utility Large Storage Unit Storage Large Storage Unit Processor Advanced Visual Processing Unit Protection Hardened Light Armor Plating Weapon Assault Rifle Ballistic Gun Assault Rifle Launcher Rocket Launcher Build | -11 -10 -10 -9 ------- Run | Scr Mat Min Mat Slots Evolved 2 | . . . 2 Power . | . . . . Propulsion . | . . . . Utility 2 | . . . 2 Weapon . | . . . . Parts Attached 29 | 7 11 3 8 Power 6 | 1 3 1 1 Engine 6 | 1 3 1 1 Core . | . . . . Reactor . | . . . . Propulsion 8 | 2 2 . 4 Treads . | . . . . Leg . | . . . . Wheel 8 | 2 2 . 4 Hover . | . . . . Flight . | . . . . Utility 7 | 2 3 . 2 Device . | . . . . Storage 5 | 2 3 . . Processor 1 | . . . 1 Hackware . | . . . . Protection 1 | . . . 1 Artifact . | . . . . Weapon 8 | 2 3 2 1 Energy Gun . | . . . . Energy Cannon . | . . . . Ballistic Gun 7 | 2 3 2 . Ballistic Cannon . | . . . . Launcher 1 | . . . 1 Special Weapon . | . . . . Impact Weapon . | . . . . Slashing Weapon . | . . . . Piercing Weapon . | . . . . Special Melee Weapon . | . . . . Unidentified Prototypes . | . . . . Parts Lost 4 | . . . 4 Power . | . . . . Propulsion 3 | . . . 3 Utility . | . . . . Weapon 1 | . . . 1 Highest Loss Streak 3 | . . . 3 Average Slot Usage (%) 99 | . 100 100 97 Engine 13 | . 14 14 11 Wheel 26 | . 28 28 20 Storage 26 | . 28 28 22 Processor 2 | . . . 11 Protection 2 | . . . 11 Ballistic Gun 26 | . 28 28 20 Naked Turns . | . . . . Heaviest Build 53 | 16 43 45 53 Greatest Support 26 | 26 26 20 20 Greatest Overweight (x) 4 | 3 2 2 4 Average Overweight (x) 1 | . 1 2 2 Largest Inventory Capacity 16 | 8 16 16 16 Average Capacity 14 | 5 13 16 16 Most Carried 16 | 6 12 14 16 Average Carried 11 | 2 10 13 14 Final Capacity 16 | 8 16 16 16 Final Carried 14 | 6 12 14 12 Class Distribution -------------------- 100% | Mutant Dominant Class ---------------- Mutant | -10/Materials Mutant | -10/Mines Mutant | -9/Materials Resources | -11 -10 -10 -9 ----------- Run | Scr Mat Min Mat Matter Collected 1178 | 148 644 174 212 Remotely . | . . . . Salvage Created 1595 | 77 663 295 560 Parts 110 | 4 51 21 34 Haulers Intercepted 1 | . . . 1 Recyclers Shooed 2 | . 1 . 1 Parts Field Recycled . | . . . . Retrieved Matter . | . . . . Parts Self-Destructed . | . . . . Prevented . | . . . . Kills | -11 -10 -10 -9 ------- Run | Scr Mat Min Mat Combat Hostiles Destroyed 41 | . 21 9 11 Guns 40 | . 21 9 10 AOE 1 | . . . 1 Classes Destroyed 8 | 1 4 . 3 Worker 3 | . 3 . . Hauler 1 | . . . 1 Recycler 3 | 1 1 1 . Operator 1 | . . . 1 Watcher 2 | . 1 . 1 Swarmer 19 | . 12 7 . Grunt 18 | . 9 2 7 Sentry 4 | . . . 4 Best Kill Streak 7 | 1 4 3 7 Combat Bots Only 5 | . 3 3 5 Max Kills in Single Turn 2 | 1 1 1 2 Gunslinging . | . . . . Exploded 1 | . . . 1 Melee . | . . . . Uniques/NPCs Destroyed . | . . . . Combat | -11 -10 -10 -9 -------- Run | Scr Mat Min Mat Damage Taken 1412 | . 674 235 503 Core 301 | . 192 37 72 Absorbed by Shields . | . . . . Core Remaining (%) 54 | 100 . 8 . Volleys Fired 130 | 1 69 23 37 Largest 2 | 2 2 2 2 Hottest 56 | 40 40 46 56 Shots Fired 249 | 2 138 46 63 Gun 247 | 2 138 46 61 Cannon . | . . . . Launcher 2 | . . . 2 Special . | . . . . Kinetic 247 | 2 138 46 61 Thermal . | . . . . Explosive 2 | . . . 2 Electromagnetic . | . . . . Robot Hit Streak 14 | 2 14 9 14 Robot Miss Streak 3 | . 3 2 3 Penetration Max . | . . . . Secondary Targets 7 | . 6 . 1 Max Gunslinging Chain 1 | . 1 . 1 Shots Hit Robots 175 | 2 95 31 47 Core Hits 73 | 2 34 13 24 Critical Hits . | . . . . Critical Kills . | . . . . Critical Parts Destroyed . | . . . . Melee Attacks . | . . . . Impact . | . . . . Slashing . | . . . . Piercing . | . . . . Sneak Attacks . | . . . . Combat Hostiles . | . . . . Follow-up Attacks . | . . . . Damage Inflicted 2465 | 19 1181 429 836 Guns 2386 | 19 1181 429 757 Cannons . | . . . . Explosions 79 | . . . 79 Melee . | . . . . Ramming . | . . . . Kinetic 2386 | 19 1181 429 757 Thermal . | . . . . Explosive 79 | . . . 79 Electromagnetic . | . . . . Impact . | . . . . Slashing . | . . . . Piercing . | . . . . Highest Corruption . | . . . . Average Corruption . | . . . . Corruption Purged . | . . . . Overload Shots . | . . . . Overflow Damage . | . . . . Projectiles . | . . . . Explosions . | . . . . Melee . | . . . . Knockbacks . | . . . . Impact . | . . . . Kinetic . | . . . . Secondary . | . . . . Self-Inflicted Damage . | . . . . Shots . | . . . . Rammed . | . . . . Targets Rammed . | . . . . Kicked . | . . . . Crushed . | . . . . Highest Temperature 39 | . 6 7 39 Average Temperature 14 | . 3 3 20 Received Heat Transfer 609 | . 270 69 270 Siege Activations . | . . . . Robots Corrupted . | . . . . Combat Hostiles . | . . . . Parts Fried . | . . . . Impact Corruptions . | . . . . Robots Melted . | . . . . Combat Hostiles . | . . . . Parts Melted . | . . . . Heat Transferred . | . . . . Parts Sabotaged . | . . . . Parts Stolen . | . . . . Parts Stripped . | . . . . Power Chain Reactions . | . . . . Missiles Intercepted . | . . . . Alert | -11 -10 -10 -9 ------- Run | Scr Mat Min Mat Peak Influence 300 | 5 300 135 279 Average Influence 106 | . 116 86 139 Maximum Alert Level 1 | . 1 . 1 Low Security (%) 90 | 100 89 100 73 Level 1 9 | . 10 . 26 Level 2 . | . . . . Level 3 . | . . . . Level 4 . | . . . . Level 5 . | . . . . High Security . | . . . . Max Security . | . . . . Squads Dispatched 6 | . 3 1 2 Investigation 4 | . 3 1 . Extermination . | . . . . Reinforcement 2 | . . . 2 Assault . | . . . . Garrison . | . . . . Intercept . | . . . . Construction Impeded . | . . . . Haulers Reinforced . | . . . . Stealth | -11 -10 -10 -9 --------- Run | Scr Mat Min Mat Distress Signals 2 | . 2 . . Communications Jammed . | . . . . Distress Signals . | . . . . Times Spotted 73 | . 40 11 22 Peak Tracking Total 7 | . 6 3 7 Tactical Retreats 5 | . 3 2 . Traps | -11 -10 -10 -9 ------- Run | Scr Mat Min Mat Traps Triggered 3 | . 3 . . Indirectly . | . . . . Trap Hack Attempts . | . . . . Triggered . | . . . . Disarmed . | . . . . Reprogrammed . | . . . . Reused . | . . . . Traps Extracted . | . . . . Installed . | . . . . Triggered . | . . . . Machines | -11 -10 -10 -9 ---------- Run | Scr Mat Min Mat Machines Disabled . | . . . . Max in Single Turn . | . . . . Machines Sabotaged . | . . . . Garrisons Compromised . | . . . . Overloaded Fab Kills . | . . . . Fab Network Shutdowns . | . . . . Hacking | -11 -10 -10 -9 --------- Run | Scr Mat Min Mat Machines Accessed 15 | . 10 1 4 Terminals 10 | . 8 . 2 Fabricators . | . . . . Repair Stations 1 | . . . 1 Recycling Units 2 | . 2 . . Scanalyzers 1 | . . . 1 Garrison Access . | . . . . Total Hacks 49 | . 29 1 19 Successful 36 | . 19 1 16 Failed 13 | . 10 . 3 Catastrophic . | . . . . Database Lockouts . | . . . . Manual 31 | . 27 . 4 Terminals 28 | . 24 . 4 Fabricators . | . . . . Repair Stations 2 | . . . 2 Recycling Units 5 | . 5 . . Scanalyzers 13 | . . . 13 Garrison Access . | . . . . Terminal Hacks 6 | . 5 1 . Record 1 | . 1 . . Robot Analysis 3 | . 3 . . Open Door 1 | . . 1 . Unreport Threat 1 | . 1 . . Fabricator Hacks . | . . . . Repair Station Hacks 2 | . . . 2 Scan Component 1 | . . . 1 Repair 1 | . . . 1 Recycling Unit Hacks 1 | . 1 . . Report Inventory 1 | . 1 . . Scanalyzer 13 | . . . 13 Insert Component 6 | . . . 6 Analyze 7 | . . . 7 Garrison Access Hacks . | . . . . Unauthorized Hacks 13 | . 12 . 1 Terminals 9 | . 8 . 1 Botnet 9 | . 8 . 1 Fabricators . | . . . . Repair Stations . | . . . . Recycling Units 4 | . 4 . . Monitor 1 | . 1 . . Reject 1 | . 1 . . Recyclers 1 | . 1 . . Mask 1 | . 1 . . Scanalyzers . | . . . . Garrison Access . | . . . . Data Cores Recovered . | . . . . Used . | . . . . Hacking Detections 12 | . 9 . 3 Full Trace Events 1 | . 1 . . Feedback Events . | . . . . Feedback Blocked . | . . . . Robot Schematics Acquired . | . . . . Robots Built . | . . . . Matter . | . . . . Time . | . . . . Total Robot Build Rating . | . . . . Part Schematics Acquired 6 | . . . 6 Parts Built . | . . . . Matter . | . . . . Time . | . . . . Total Part Build Rating . | . . . . Parts Repaired 1 | . . . 1 Time 26 | . . . 26 Parts Recycled . | . . . . Recycled Matter . | . . . . Retrieved Matter . | . . . . Retrieved Components . | . . . . Parts Scanalyzed 6 | . . . 6 Part Schematics Acquired 6 | . . . 6 Parts Damaged . | . . . . Bothacking | -11 -10 -10 -9 ------------ Run | Scr Mat Min Mat Used RIF Installer . | . . . . Robots Hacked . | . . . . Non-combat . | . . . . Combat . | . . . . Robot Hacks Applied . | . . . . Relay Couplers Released . | . . . . Robots Rewired . | . . . . Allies Hacked . | . . . . Hacks Repelled . | . . . . Allies | -11 -10 -10 -9 -------- Run | Scr Mat Min Mat Total Allies . | . . . . Largest Group . | . . . . Highest-Rated Group . | . . . . Highest-Rated Ally . | . . . . Total Orders . | . . . . Ally Attacks . | . . . . Total Damage . | . . . . Kills . | . . . . Allies Corrupted . | . . . . Allies Melted . | . . . . Intel | -11 -10 -10 -9 ------- Run | Scr Mat Min Mat Robot Analysis Total 3 | . 3 . . Derelict Logs Recovered 3 | . . 3 . Drone Launches . | . . . . Drone Recoveries . | . . . . Exploration | -11 -10 -10 -9 ------------- Run | Scr Mat Min Mat Turns Passed 2351 | 83 1025 795 448 Spaces Moved 1776 | 58 751 690 277 Core 14 | 14 . . . Treads . | . . . . Legs . | . . . . Wheels 1762 | 44 751 690 277 Hover . | . . . . Flight . | . . . . Fastest Speed 50 | 50 80 100 100 Average Speed 98 | 111 94 100 100 Slowest Speed 200 | 200 100 100 120 Overloaded Moves . | . . . . Propulsion Burnouts . | . . . . Robots Hopped . | . . . . Cave-ins Triggered . | . . . . Exploration Rate (%) 59 | 5 99 99 34 Regions Visited 3 Branch Regions 1 Pre-discovered Areas 2 | . . 2 . Known Exits Taken . | . . . . Unknown Exits Taken 3 | 1 1 1 . Scrap Searched 1 | . . 1 . Spaces Dug . | . . . . Terrain Destroyed 18 | . . . 18 Melee . | . . . . Projectile . | . . . . AOE 18 | . . . 18 Actions | -11 -10 -10 -9 --------- Run | Scr Mat Min Mat Total 2138 | 71 932 750 385 Wait 152 | . 70 27 55 Move 1773 | 57 750 689 277 Hop . | . . . . Pick Up 32 | 6 15 5 6 Fast Attach 8 | 7 1 . . Attach 11 | . 1 3 7 Detach . | . . . . Swap 10 | . 9 . 1 Drop 22 | . 17 3 2 Fire 130 | 1 69 23 37 Melee . | . . . . Ram . | . . . . Kick . | . . . . Crush . | . . . . Escape Stasis . | . . . . Rewire . | . . . . Trap . | . . . . Miscellaneous . | . . . . Route ------- -11/Scrapyard -10/Materials (discovered 5 exits: *Mat x3 / *Min x2) -10/Mines (discovered 2 exits: *Mat x2) -9/Materials (discovered 3 exits: [*Mat] / [*Min] / [*Sto]) History --------- Turn | Location | Event 32 | -11/Scrapyard | Discovered new exit (range 14) 84 | -11/Scrapyard | Entered Materials 274 | -10/Materials | Discovered new exit (range 12) 307 | -10/Materials | Build established: Mutant 432 | -10/Materials | Discovered new exit (range 16) 613 | -10/Materials | Discovered new exit (range 7) 699 | -10/Materials | Core integrity fell below 50% 736 | -10/Materials | Discovered new exit (range 9) 1052 | -10/Materials | Discovered new exit (range 12) 1109 | -10/Materials | Entered Mines 1182 | -10/Mines | Learned location of Zion (-6) 1254 | -10/Mines | Met a Derelict shopkeep closing up shop 1312 | -10/Mines | Core integrity fell below 20% 1347 | -10/Mines | Received a Rocket Launcher from a helpful Derelict 1365 | -10/Mines | Learned Materials trap positions 1486 | -10/Mines | Learned Materials garrison access intel 1493 | -10/Mines | Learned location of Storage (-9) 1496 | -10/Mines | Discovered new exit (range 15) 1842 | -10/Mines | Discovered new exit (range 6) 1904 | -10/Mines | Entered Materials 1904 | -9/Materials | Evolved 2 slots: Utility x2 1905 | -9/Materials | Loaded intel: 10 trap records 2039 | -9/Materials | Discovered new exit (range 18) 2109 | -9/Materials | Discovered new exit (range 3) 2272 | -9/Materials | Repaired Wheel 2331 | -9/Materials | Discovered new exit (range 13) 2339 | -9/Materials | Lost 3 parts (2n1w) 2352 | -9/Materials | Self-destructed Last Messages --------------- 02312_ G-47 Trooper destroyed. 02313_ K-01 Serf cleans the Matter Pump. 02316_ G-34 Mercenary destroyed. 02319_ K-01 Serf cleans the Matter Pump. 02320_ Acquired 35 matter. 02325_ K-01 Serf collects debris. 02327_ ALERT: Hostiles spotted, dispatching reinforcements to Terminal M001. 02328_ K-01 Serf collects debris. 02331_ EXIT=FOUND 02332_ K-01 Serf collects debris. 02333_ T-07 Excavator is excavating. 02334_ K-01 Serf collects debris. 02335_ G-34 Mercenary destroyed. 02337_ T-07 Excavator is excavating. 02338_ K-01 Serf collects debris. 02341_ T-07 Excavator is excavating. 02347_ Terminal disabled. 02350_ T-07 Excavator is excavating. 02350_ Y-45 Defender destroyed. Map ----- +----------------------------------------------------+ | ?????????????????????????????????????????????????? | | ?????????????????????????????????????????????????? | | ?????????????????????????????????????????????????? | | ?????????????T ?????????????????????????????????? | | ???????????? ?????????????????????????????????? | | ???????????? #????????????????????????????????? | | ????????????# #????????????????????????????????? | | ????????????# #????????????????????????????????? | | ????????????# #????????????????????????????????? | | ????????????# #????????#???????????????????????? | | ????????????# #???????? ???????????????????????? | | #+##????????# #????????t#??????????????????????? | | ????????# #?????### ###????????????????????? | | ?????????# #????## ##???????????????????? | | ?????????# #????# #???????????????????? | | ?????????# #????# < #???????????????????? | | ?????????# #????? #???????????????????? | | # #?????????# #????? =[[% ???????????????????? | | # #?????????# #?????# =!* ????????????????????? | | # #??######## ####### = ????????????????????? | | # #??# # # ?????????????????????? | | # ##?# """ # # ?????????????????????? | | ==*### "R + + # #?????????????????????? | | ![=% +%""" # # ]# #?????????????????????? | | %=!###% # ######## ##????????????????????? | | ####?# # ####### @ #????????????????????? | | ?????# ###### !%= gg ######???????????????? | | ?????###????# *![ +?????????????? | | ????????????# g ########?????????????? | | ????????????# k####### #????????????????????? | | ????????????# #?????#######????????????????????? | | ????????????# #????????????????????????????????? | | ????????????# #????????????????????????????????? | | ???????????? ????????????????????????????????? | | ??????????? ????????????????????????????????? | | ??????????" ????????????????????????????????? | | ????????? """???????????????????????????????? | | ???????? """???????????????????????????????? | | ??????? """ """???????????????????????????????? | | ?????? """ ???????????????????????????????? | | ?????? """ ???????????????????????????????? | | ?????? ?? """???????????????????????????????? | | ?????????] "?????????????????????????????????? | | ?????????#### ??????????????????????????????????? | | ????????????# ??????????????????????????????????? | | ????????????# ??????????????????????????????????? | | ????????????" ???????????????????????????????????? | | ????????????? ???????????????????????????????????? | | ????????????? ???????????????????????????????????? | | ?????????????????????????????????????????????????? | +----------------------------------------------------+ Best States ------------- Heat Dissipation 28 Energy Generation 18 Energy Capacity 265 Matter Stores 300 Matter Capacity 300 Sight Range 20 Terrain Scan Density 10 Armor Coverage 150 Resistance: KI 20 Resistance: TH 20 Resistance: EX 20 Resistance: EM 20 Resistance: I 20 Resistance: S 20 Resistance: P 20 Evasion (%) 44 Offensive Hacking 10 Item Schematics ----------------- Wheel | -9/Materials | Scanalyzed Lrg. Storage Unit | -9/Materials | Scanalyzed Med. Storage Unit | -9/Materials | Scanalyzed Hrd. Light Armor Plating | -9/Materials | Scanalyzed Hvy. Assault Rifle | -9/Materials | Scanalyzed Armor Integrity Analyzer | -9/Materials | Scanalyzed Robot Schematics ------------------ None Fabricated ------------ Nothing Alien Tech Used ----------------- None Achievements -------------- None Challenges ------------ None Game ------ Seed AutogunIntegratedMallet Manual? 0 Play Time 00:25:43 Cumulative 27.5 hours Start 2020.08.11 @ 15:22:58 End 2020.08.11 @ 15:47:55 Sessions 1 Manual Loads 0 Difficulty Adventurer Special Mode None Game No. 56 Rogue 46 Adventurer 10 Explorer 0 Win Type - Total 0 Types 0/0/0/0/0/0/0 Lore% 22 Gallery% 22 Achievement% 22 Wizard Run 0 Options --------- ASCII 0 Keyboard 0 Movement Mouse Keybinds 0 Fullscreen 2 Font 18/SmallcapsGlow Map View 76x50 Tactical HUD 1 Map Filters NONE Filters NONE Steam 1 RUN: 3fc874ed-d60d-4ed2-a289-c15f43c2c845